bitfinex/quotes_SOLUSD_20240909
["timestamp","ask_amount","ask_price","bid_price","bid_amount"]
[1725882266981,6.1144,129.92,129.84,2.46989589]
[1725882267183,6.1144,129.92,129.83,15.89855996]
[1725882267762,15.1886,129.91,129.83,15.89855996]
[1725882269089,15.1886,129.91,129.84,20.0]
[1725882270288,15.1886,129.91,129.8,16.2422]
[1725882270477,15.1886,129.91,129.82,15.89855996]
[1725882271685,15.1886,129.91,129.83,20.0]
[1725882272269,15.1886,129.91,129.83,21.54019318]
[1725882272473,15.1886,129.91,129.83,20.0]
[1725882278475,6.0467,129.9,129.83,20.0]
[1725882278797,6.0467,129.9,129.81,15.89855996]
[1725882278988,6.0467,129.9,129.82,65.0]
[1725882279872,16.119,129.89,129.82,65.0]
[1725882282689,16.119,129.89,129.82,66.54023079]
[1725882283468,16.119,129.89,129.82,65.0]
[1725882285266,16.119,129.89,129.83,15.89855996]
[1725882289902,16.119,129.89,129.84,45.0]
[1725882290286,16.119,129.89,129.85,35.89855996]
[1725882300901,16.119,129.89,129.85,20.0]
[1725882301078,16.119,129.89,129.83,15.89855996]
[1725882301279,16.119,129.89,129.84,20.0]
[1725882305699,16.119,129.89,129.78,17.38889323]
[1725882305990,16.119,129.89,129.84,15.89855996]
[1725882306206,16.119,129.89,129.86,15.89855996]
[1725882312017,16.119,129.89,129.86,18.36907796]
[1725882312191,15.167,129.92,129.86,15.89855996]
[1725882312394,15.167,129.92,129.87,24.01008919]
[1725882313916,15.167,129.92,129.88,15.89855996]
[1725882314097,15.167,129.92,129.9,15.89855996]
[1725882315198,15.4632,129.95,129.9,15.89855996]
[1725882315398,15.4632,129.95,129.92,15.89855996]
[1725882320431,15.4632,129.95,129.87,20.0]
[1725882320628,15.4632,129.95,129.92,15.89855996]
[1725882320921,15.4632,129.95,129.89,15.89855996]
[1725882321109,15.4632,129.95,129.9,20.0]
[1725882321622,15.4632,129.95,129.86,6.70176997]
[1725882321828,15.4632,129.95,129.87,15.89855996]
[1725882323221,15.4632,129.95,129.88,20.0]
[1725882325215,15.4632,129.95,129.89,15.89855996]
[1725882327944,15.4632,129.95,129.88,20.0]
[1725882328131,15.4632,129.95,129.89,45.0]
[1725882328435,15.4632,129.95,129.88,15.89855996]
[1725882328732,15.4632,129.95,129.89,20.0]
[1725882334032,15.4632,129.95,129.9,15.89855996]
[1725882336320,15.4632,129.95,129.89,20.0]
[1725882338730,15.4632,129.95,129.82,13.30836997]
[1725882338944,15.4632,129.95,129.87,15.89855996]
[1725882339126,15.4632,129.95,129.88,20.0]
[1725882339927,15.4632,129.95,129.87,15.89855996]
[1725882340127,15.4632,129.95,129.88,20.0]
[1725882340735,6.5379,129.94,129.88,20.0]
[1725882341134,15.3681,129.93,129.88,20.0]
[1725882342957,15.3681,129.93,129.88,17.6382508]
[1725882345242,15.3681,129.93,129.87,15.89855996]
[1725882346340,15.3681,129.93,129.85,60.89855996]
[1725882346664,6.3588,129.92,129.86,20.0]
[1725882366631,16.6343,129.91,129.86,20.0]
[1725882366836,16.6343,129.91,129.85,15.89855996]
[1725882367036,16.6343,129.91,129.86,20.0]
[1725882370843,16.6343,129.91,129.85,15.89855996]
[1725882371046,16.6343,129.91,129.86,20.0]
[1725882375144,16.6343,129.91,129.85,20.0]
[1725882375367,16.6343,129.91,129.85,15.89855996]
[1725882375554,16.6343,129.91,129.86,20.0]
[1725882378346,16.6343,129.91,129.85,15.89855996]
[1725882379567,16.6343,129.91,129.83,2.47072836]
[1725882379870,16.6343,129.91,129.84,18.36928832]
[1725882380062,16.6343,129.91,129.85,20.0]
[1725882380971,16.6343,129.91,129.85,22.47072836]
[1725882381346,16.6343,129.91,129.85,20.0]
[1725882381546,16.6343,129.91,129.85,22.47072865]
[1725882383377,16.6343,129.91,129.85,20.0]
[1725882385778,16.6343,129.91,129.86,2.47072865]
[1725882387281,16.6343,129.91,129.86,15.89855996]
[1725882389064,16.6343,129.91,129.85,20.0]
[1725882389368,16.6343,129.91,129.86,18.36917995]
[1725882389574,16.6343,129.91,129.86,15.89855996]
[1725882390956,16.6343,129.91,129.85,15.89855996]
[1725882391180,16.6343,129.91,129.86,2.4706869]
[1725882391385,16.6343,129.91,129.85,15.89855996]
[1725882391688,16.6343,129.91,129.87,2.4706869]
[1725882391863,16.6343,129.91,129.85,15.89855996]
[1725882392063,16.6343,129.91,129.86,2.47069571]
[1725882392289,16.6343,129.91,129.87,2.47069571]
[1725882392466,16.6343,129.91,129.85,15.89855996]
[1725882392666,16.6343,129.91,129.86,2.47068448]
[1725882392871,16.6343,129.91,129.87,2.47068448]
[1725882393082,16.6343,129.91,129.85,15.89855996]
[1725882393279,16.6343,129.91,129.86,2.47069158]
[1725882393585,16.6343,129.91,129.85,15.89855996]
[1725882393586,16.6343,129.91,129.87,2.47069158]
[1725882393759,16.6343,129.91,129.85,15.89855996]
[1725882393965,16.6343,129.91,129.86,2.47069571]
[1725882394166,16.6343,129.91,129.87,2.47069571]
[1725882394466,16.6343,129.91,129.85,15.89855996]
[1725882394664,16.6343,129.91,129.86,2.47069515]
[1725882394971,16.6343,129.91,129.84,20.0]
[1725882395169,16.6343,129.91,129.85,2.47077373]
[1725882395378,16.6343,129.91,129.84,20.0]
[1725882398596,6.4091,129.9,129.79,13.23646997]
[1725882398802,6.4091,129.9,129.81,60.89855996]
[1725882399173,6.4091,129.9,129.83,15.89855996]
[1725882408983,6.4091,129.9,129.79,13.23646997]
[1725882408984,15.023,129.89,129.79,6.70176997]
[1725882409187,15.023,129.89,129.82,15.89855996]
[1725882409390,15.023,129.89,129.83,20.0]
[1725882417714,15.023,129.89,129.81,15.89855996]
[1725882418013,15.023,129.89,129.82,20.0]
[1725882421081,15.023,129.89,129.8,20.0]
[1725882421283,22.7218,129.89,129.81,15.89855996]
[1725882421494,6.5211,129.88,129.81,15.89855996]
[1725882421907,7.7007,129.86,129.76,29.76656997]
[1725882422116,7.7019,129.84,129.76,6.70176997]
[1725882422278,7.7024,129.83,129.73,16.6565]
[1725882422485,6.2117,129.83,129.74,0.13]
[1725882422684,16.0349,129.81,129.72,15.89855996]
[1725882423304,16.0349,129.81,129.69,21.8553]
[1725882423511,16.0349,129.81,129.67,14.91807251]
[1725882423512,51.2117,129.8,129.67,14.91807251]
[1725882423707,7.7051,129.79,129.67,14.91807251]
[1725882423888,58.9158,129.8,129.69,15.89855996]
[1725882424207,36.0349,129.79,129.68,15.89855996]
[1725882424387,45.0,129.78,129.68,15.89855996]
[1725882426688,45.0,129.78,129.69,20.0]
[1725882427895,30.61443413,129.77,129.69,20.0]
[1725882428082,30.61443413,129.77,129.7,15.89855996]
[1725882435829,27.47919344,129.78,129.7,15.89855996]
[1725882437312,6.1529,129.77,129.7,15.89855996]
[1725882437619,42.03332584,129.76,129.69,20.0]
[1725882438200,42.03332584,129.76,129.69,15.89855996]
[1725882438512,42.03332584,129.76,129.7,20.0]
[1725882439417,42.03332584,129.76,129.69,15.89855996]
[1725882439620,42.03332584,129.76,129.7,20.0]
[1725882440422,42.03332584,129.76,129.69,20.0]
[1725882442427,23.72990022,129.75,129.69,20.0]
[1725882442612,40.7249315,129.76,129.69,20.0]
[1725882444099,40.7249315,129.76,129.69,21.54185638]
[1725882444602,40.7249315,129.76,129.69,20.0]
[1725882445204,44.25013618,129.75,129.63,0.8480476]
[1725882445419,45.0,129.74,129.66,15.89855996]
[1725882445624,68.31055176,129.74,129.67,20.0]
[1725882445924,23.31055176,129.74,129.67,20.0]
[1725882447025,23.31055176,129.74,129.68,15.89855996]
[1725882451133,23.31055176,129.74,129.67,20.0]
[1725882452429,23.31055176,129.74,129.68,15.89855996]
[1725882453614,21.4691,129.75,129.68,15.89855996]
[1725882453812,21.4691,129.75,129.7,15.89855996]
[1725882454014,21.4691,129.75,129.72,15.89855996]
[1725882454216,21.4691,129.75,129.67,20.0]
[1725882454217,20.78767728,129.76,129.74,15.89855996]
[1725882455815,20.78767728,129.76,129.72,15.89855996]
[1725882462239,20.78767728,129.76,129.67,20.0]
[1725882462534,20.78767728,129.76,129.66,18.73471661]
[1725882462535,20.78767728,129.76,129.7,15.89855996]
[1725882467725,20.78767728,129.76,129.7,18.3717848]
[1725882467926,20.78767728,129.76,129.7,15.89855996]
[1725882468123,20.78767728,129.76,129.71,2.47322484]
[1725882469840,16.1679,129.75,129.71,2.47322484]
[1725882474139,16.1679,129.75,129.72,15.89855996]
[1725882474449,16.1679,129.75,129.72,18.37175165]
[1725882474636,16.1679,129.75,129.72,15.89855996]
[1725882475035,16.1679,129.75,129.7,15.89855996]
[1725882475237,16.1679,129.75,129.71,2.47319169]
[1725882476048,16.1679,129.75,129.72,15.89855996]
[1725882476260,16.1679,129.75,129.72,18.37175165]
[1725882476563,16.1679,129.75,129.72,15.89855996]
[1725882477348,16.1679,129.75,129.7,15.89855996]
[1725882477727,16.1679,129.75,129.71,2.47315825]
[1725882480559,16.1679,129.75,129.7,15.89855996]
[1725882480732,16.1679,129.75,129.71,2.47319178]
[1725882481958,16.1679,129.75,129.7,15.89855996]
[1725882482136,16.1679,129.75,129.71,2.47319178]
[1725882482749,16.1679,129.75,129.71,2.47319185]
[1725882483248,16.1679,129.75,129.7,15.89855996]
[1725882483554,16.1679,129.75,129.71,2.47319185]
[1725882484154,6.4827,129.74,129.71,2.47319185]
[1725882484335,6.4827,129.74,129.64,6.70176997]
[1725882484336,6.4827,129.74,129.67,15.89855996]
[1725882484539,6.4827,129.74,129.68,22.47319185]
[1725882484744,6.4827,129.74,129.69,2.47319185]
[1725882484941,6.4827,129.74,129.7,2.47319185]
[1725882485137,25.96004778,129.74,129.69,2.47319185]
[1725882485657,6.4827,129.74,129.69,2.47319185]
[1725882486160,25.93499044,129.74,129.68,20.0]
[1725882486358,25.93499044,129.74,129.69,2.47361944]
[1725882487047,25.93499044,129.74,129.68,2.47361944]
[1725882487240,25.93499044,129.74,129.69,2.47361944]
[1725882487443,25.93499044,129.74,129.68,2.47361944]
[1725882487739,25.93499044,129.74,129.69,2.47361944]
[1725882487942,25.93499044,129.74,129.68,2.47361944]
[1725882488239,25.93499044,129.74,129.69,2.47361944]
[1725882488565,25.93499044,129.74,129.68,2.47361944]
[1725882488746,25.93499044,129.74,129.69,2.47361944]
[1725882488946,25.93499044,129.74,129.68,2.47361944]
[1725882489150,25.93499044,129.74,129.69,2.47361944]
[1725882489447,25.93499044,129.74,129.68,2.47361944]
[1725882489958,25.93499044,129.74,129.69,2.47361944]
[1725882490144,25.93499044,129.74,129.68,2.47361944]
[1725882490456,25.93499044,129.74,129.69,2.47361944]
[1725882490659,25.93499044,129.74,129.68,2.47361944]
[1725882490840,25.93499044,129.74,129.69,2.47361944]
[1725882491036,25.93499044,129.74,129.68,2.47361944]
[1725882492635,15.6416,129.73,129.68,2.47361944]
[1725882492845,23.3499,129.73,129.68,2.47361944]
[1725882493057,23.3499,129.73,129.65,15.89855996]
[1725882493238,15.6416,129.73,129.65,15.89855996]
[1725882493850,15.6416,129.73,129.66,2.47364913]
[1725882494156,15.6416,129.73,129.67,15.89855996]
[1725882494532,15.6416,129.73,129.67,18.37220909]
[1725882494736,15.6416,129.73,129.68,2.47364913]
[1725882496262,15.6416,129.73,129.67,15.89855996]
[1725882497042,15.6416,129.73,129.68,2.47365318]
[1725882498864,34.66880161,129.73,129.68,2.47365318]
[1725882500367,34.66880161,129.73,129.66,2.47365318]
[1725882500543,34.66880161,129.73,129.67,2.47365318]
[1725882500743,34.66880161,129.73,129.66,2.47365318]
[1725882501057,34.66880161,129.73,129.67,2.47365318]
[1725882501266,42.37720161,129.73,129.66,2.47365318]
[1725882501454,34.66880161,129.73,129.67,2.47365318]
[1725882501655,34.66880161,129.73,129.66,2.47365318]
[1725882501966,42.37720161,129.73,129.67,2.47365318]
[1725882502142,16.4451,129.7,129.66,2.47365318]
[1725882502654,16.4451,129.7,129.64,2.47365318]
[1725882502845,16.4451,129.7,129.65,2.47365318]
[1725882503048,16.4451,129.7,129.64,2.47365318]
[1725882503559,16.4451,129.7,129.64,2.47428132]
[1725882504359,16.4451,129.7,129.63,36.74660756]
[1725882504738,16.4451,129.7,129.63,16.74660756]
[1725882504944,16.4451,129.7,129.63,19.22088888]
[1725882505163,16.4451,129.7,129.63,16.74660756]
[1725882506469,6.2407,129.69,129.63,0.8480476]
[1725882509892,6.2407,129.69,129.64,15.89855996]
[1725882510243,6.2407,129.69,129.63,0.8480476]
[1725882510244,6.2407,129.69,129.66,15.89855996]
[1725882510484,16.4451,129.7,129.66,15.89855996]
[1725882512377,16.4451,129.7,129.63,0.8480476]
[1725882512551,16.4451,129.7,129.65,15.89855996]
[1725882515660,6.1046,129.69,129.63,16.74660756]
[1725882532604,16.0425,129.68,129.63,0.8480476]
[1725882532781,16.0425,129.66,129.63,0.8480476]
[1725882536713,21.4953,129.7,129.64,15.89855996]
[1725882536877,21.4953,129.7,129.66,15.89855996]
[1725882537303,21.4953,129.7,129.64,15.89855996]
[1725882539086,21.4953,129.7,129.63,0.8480476]
[1725882539287,45.0,129.69,129.63,0.8480476]
[1725882540486,21.4953,129.7,129.64,15.89855996]
[1725882543714,21.4953,129.7,129.66,15.89855996]
[1725882543715,15.0182,129.7,129.66,15.89855996]
[1725882543921,18.41965979,129.71,129.68,15.89855996]
[1725882544207,16.1435,129.73,129.68,15.89855996]
[1725882545616,51.34343194,129.78,129.63,0.8480476]
[1725882545617,34.61325145,129.76,129.72,15.89855996]
[1725882545797,16.1885,129.76,129.72,15.89855996]
[1725882547319,16.1885,129.76,129.71,15.89855996]
[1725882548201,16.1885,129.76,129.69,15.89855996]
[1725882549317,16.1885,129.76,129.71,15.89855996]
[1725882563797,16.1885,129.76,129.73,15.89855996]
[1725882564529,26.70855868,129.78,129.75,15.89855996]
[1725882574812,20.51995868,129.78,129.75,15.89855996]
[1725882585139,20.51995868,129.78,129.71,16.3016]
[1725882585445,20.51995868,129.78,129.73,15.89855996]
[1725882587920,20.51995868,129.78,129.75,15.89855996]
[1725882592545,20.51995868,129.78,128.95,0.20488048]
[1725882592546,40.14063233,129.77,129.64,16.3169]
[1725882592729,71.01802747,129.76,129.64,16.3169]
[1725882592930,25.64630213,129.75,129.7,15.89855996]
[1725882595336,33.35340213,129.75,129.7,15.89855996]
[1725882595726,45.0,129.74,129.7,15.89855996]
[1725882596721,25.64630213,129.75,129.7,15.89855996]
[1725882601652,33.35350213,129.75,129.68,15.89855996]
[1725882601968,33.35350213,129.75,129.67,15.89855996]
[1725882605563,45.0,129.74,129.67,15.89855996]
[1725882609457,33.35350213,129.75,129.69,15.89855996]
[1725882612066,25.64630213,129.75,129.69,15.89855996]
[1725882616351,25.64630213,129.75,129.71,15.89855996]
[1725882617050,25.64630213,129.75,129.73,15.89855996]
[1725882620964,25.64630213,129.75,129.68,22.6584]
[1725882621176,25.64630213,129.75,129.71,15.89855996]
[1725882621552,25.64630213,129.75,129.69,65.0]
[1725882621755,25.64630213,129.75,129.71,15.89855996]
[1725882622879,25.64630213,129.75,129.69,20.0]
[1725882623065,25.64630213,129.75,129.71,15.89855996]
[1725882623460,25.64630213,129.75,129.69,15.89855996]
[1725882624151,25.64630213,129.75,129.65,6.4744]
[1725882624350,25.64630213,129.75,129.67,15.89855996]
[1725882626783,33.35350213,129.75,129.67,15.89855996]
[1725882629180,25.64630213,129.75,129.67,15.89855996]
[1725882631980,6.6236,129.72,129.64,15.7222]
[1725882632191,6.6236,129.72,129.61,22.0757]
[1725882632483,65.0,129.71,129.64,15.89855996]
[1725882632662,16.3575,129.7,129.64,15.89855996]
[1725882633064,24.0679,129.7,129.58,22.0757]
[1725882633258,45.0,129.69,129.62,15.89855996]
[1725882633460,45.0,129.69,129.58,22.0757]
[1725882633775,7.7112,129.68,129.58,22.0757]
[1725882633971,6.4937,129.67,129.61,15.89855996]
[1725882647094,6.4937,129.67,129.58,22.0757]
[1725882647296,6.4937,129.67,129.61,15.89855996]
[1725882653574,6.4937,129.67,129.58,22.0757]
[1725882653575,6.4937,129.67,129.63,16.74660756]
[1725882653776,6.4937,129.67,129.63,0.8480476]
[1725882658896,23.74891958,129.69,129.64,15.89855996]
[1725882665718,23.74891958,129.69,129.63,0.8480476]
[1725882665912,16.3575,129.7,129.66,15.89855996]
[1725882670204,16.3575,129.7,129.68,15.89855996]
[1725882670607,16.3575,129.7,129.64,2.47429974]
[1725882670907,6.0383,129.71,129.67,15.89855996]
[1725882671816,6.0383,129.71,129.66,15.89855996]
[1725882671995,6.0383,129.71,129.64,47.47429366]
[1725882672198,6.0383,129.71,129.66,15.89855996]
[1725882677812,6.0383,129.71,129.68,15.89855996]
[1725882682009,6.0383,129.71,129.66,15.89855996]
[1725882682498,6.0383,129.71,129.63,3.3223577]
[1725882682698,6.0383,129.71,129.64,15.89855996]
[1725882683914,16.37,129.7,129.64,15.89855996]
[1725882689401,16.37,129.7,129.66,15.89855996]
[1725882691931,16.37,129.7,129.68,15.89855996]
[1725882694219,23.44345959,129.73,129.68,15.89855996]
[1725882698143,23.44345959,129.73,129.66,2.47422553]
[1725882698334,23.44345959,129.73,129.68,15.89855996]
[1725882723446,21.4395,129.74,129.68,15.89855996]
[1725882729074,21.4395,129.74,129.66,2.47422535]
[1725882729075,21.4395,129.74,129.67,2.47422535]
[1725882729376,21.4395,129.74,129.68,15.89855996]
[1725882729755,21.4395,129.74,129.66,2.47422535]
[1725882729958,21.4395,129.74,129.68,15.89855996]
[1725882730159,37.80887049,129.73,129.63,22.3141476]
[1725882730358,37.80887049,129.73,129.68,15.89855996]
[1725882731679,37.80887049,129.73,129.68,2.4742271]
[1725882731981,37.80887049,129.73,129.68,15.89855996]
[1725882735290,37.80887049,129.73,129.69,2.47413615]
[1725882735486,37.80887049,129.73,129.68,15.89855996]
[1725882739173,21.4395,129.74,129.68,15.89855996]
[1725882745098,29.1476,129.74,129.63,22.3141476]
[1725882745307,34.81519563,129.73,129.66,15.89855996]
[1725882746700,34.81519563,129.73,129.63,22.3141476]
[1725882746881,34.81519563,129.73,129.67,15.89855996]
[1725882749610,36.68385412,129.73,129.67,15.89855996]
[1725882750195,36.68385412,129.73,129.69,15.89855996]
[1725882756806,36.68385412,129.73,129.63,30.0501476]
[1725882756807,36.68385412,129.73,129.71,15.89855996]
[1725882757982,36.68385412,129.73,129.67,21.6443]
[1725882758305,36.68385412,129.73,129.71,15.89855996]
[1725882780718,36.68385412,129.73,129.68,65.0]
[1725882780922,36.68385412,129.73,129.72,15.89855996]
[1725882781302,36.68385412,129.73,129.68,65.0]
[1725882781500,36.68385412,129.73,129.71,15.89855996]
[1725882791833,36.68385412,129.73,129.68,65.0]
[1725882792130,36.68385412,129.73,129.72,15.89855996]
[1725882792740,36.68385412,129.73,129.68,65.0]
[1725882792910,36.68385412,129.73,129.72,15.89855996]
[1725882793608,36.68385412,129.73,129.68,65.0]
[1725882793914,36.68385412,129.73,129.7,15.89855996]
[1725882794527,36.68385412,129.73,129.68,20.0]
[1725882794735,36.68385412,129.73,129.69,15.89855996]
[1725882795239,36.68385412,129.73,129.64,6.2919]
[1725882795538,36.68385412,129.73,129.68,15.89855996]
[1725882795735,36.68385412,129.73,129.65,2.47403666]
[1725882795940,36.68385412,129.73,129.68,15.89855996]
[1725882796309,15.4456,129.72,129.68,15.89855996]
[1725882811555,15.4456,129.72,129.66,2.47402793]
[1725882811731,15.4456,129.72,129.66,18.37258789]
[1725882811933,15.4456,129.72,129.66,15.89855996]
[1725882816546,15.4456,129.72,129.63,16.4395476]
[1725882816747,15.4456,129.72,129.67,15.89855996]
[1725882824255,15.4456,129.72,129.64,45.0]
[1725882824462,15.4456,129.72,129.63,0.8480476]
[1725882824463,6.4492,129.71,129.63,0.8480476]
[1725882824791,22.947,129.7,129.63,0.8480476]
[1725882825259,15.2369,129.7,129.63,0.8480476]
[1725882825860,45.0,129.69,129.63,0.8480476]
[1725882826060,22.947,129.7,129.63,0.8480476]
[1725882826859,15.2369,129.7,129.63,0.8480476]
[1725882827367,15.2369,129.7,129.64,15.89855996]
[1725882839469,22.9471,129.7,129.63,0.8480476]
[1725882839672,45.0,129.69,129.63,0.8480476]
[1725882839873,15.2369,129.7,129.64,15.89855996]
[1725882843851,15.2369,129.7,129.66,15.89855996]
[1725882846173,15.2369,129.7,129.63,0.8480476]
[1725882846380,15.2369,129.7,129.65,15.89855996]
[1725882859589,15.2369,129.7,129.63,16.74660756]
[1725882863894,22.9472,129.7,129.63,16.74660756]
[1725882864073,45.0,129.69,129.63,16.74660756]
[1725882864896,22.9472,129.7,129.63,16.74660756]
[1725882866194,15.2369,129.7,129.63,16.74660756]
[1725882869268,87.78074798,129.7,129.63,16.74660756]
[1725882869469,39.13715751,129.69,129.63,16.74660756]
[1725882876089,39.13715751,129.69,129.67,15.89855996]
[1725882881191,39.13715751,129.69,129.64,20.0]
[1725882881391,39.13715751,129.69,129.66,15.89855996]
[1725882884415,39.13715751,129.69,129.68,15.89855996]
[1725882892423,39.13715751,129.69,129.64,20.0]
[1725882892601,39.13715751,129.69,129.67,15.89855996]
[1725882908768,36.65605751,129.69,129.67,15.89855996]
[1725882909037,51.46430739,129.78,129.68,65.0]
[1725882909233,51.46430739,129.78,129.75,15.89855996]
[1725882909420,51.46430739,129.78,129.77,15.89855996]
[1725882909421,44.87100739,129.78,129.77,15.89855996]
[1725882917341,22.304,129.82,129.77,15.89855996]
[1725882919622,20.0,129.81,129.71,15.5849]
[1725882919923,20.0,129.81,129.74,15.89855996]
[1725882924939,20.0,129.81,129.76,15.89855996]
[1725882927738,22.304,129.82,129.76,15.89855996]
[1725882932858,45.0,129.81,129.76,15.89855996]
[1725882933044,45.0,129.81,129.71,15.5849]
[1725882933045,52.7036,129.81,129.74,15.89855996]
[1725882936463,85.97825108,129.81,129.74,15.89855996]
[1725882936946,7.7041,129.8,129.74,15.89855996]
[1725882937150,7.7041,129.8,129.72,15.89855996]
[1725882937942,16.461,129.78,129.7,6.1591]
[1725882938164,16.461,129.78,129.71,15.89855996]
[1725882938461,22.9753,129.78,129.71,15.89855996]
[1725882938636,45.0,129.77,129.71,15.89855996]
[1725882940561,52.7059,129.77,129.69,15.89855996]
[1725882946543,16.5167,129.75,129.67,15.89855996]
[1725882946750,51.1765,129.74,129.67,15.89855996]
[1725882946955,58.8843,129.74,129.67,15.89855996]
[1725882947158,51.1765,129.74,129.65,15.89855996]
[1725882948062,36.5167,129.73,129.63,0.8480476]
[1725882948273,52.7093,129.72,129.63,16.74660756]
[1725882949358,45.0,129.72,129.65,15.89855996]
[1725882951874,44.225,129.73,129.65,15.89855996]
[1725882954973,36.5167,129.73,129.65,15.89855996]
[1725882960275,44.225,129.73,129.65,15.89855996]
[1725882961880,36.5167,129.73,129.67,15.89855996]
[1725882962182,16.5167,129.73,129.67,15.89855996]
[1725882962365,6.1765,129.74,129.69,15.89855996]
[1725882962565,15.2299,129.76,129.69,15.89855996]
[1725882963352,15.2299,129.76,129.71,15.89855996]
[1725882972183,35.66738746,129.78,129.71,15.89855996]
[1725882972481,35.66738746,129.78,129.69,22.602]
[1725882972482,35.66738746,129.78,129.73,15.89855996]
[1725882973968,35.66738746,129.78,129.75,15.89855996]
[1725882982088,35.66738746,129.78,129.77,15.89855996]
[1725882982270,280.7588,129.86,129.77,80.89855996]
[1725882982470,21.8588,129.86,129.81,15.89855996]
[1725882986367,21.8588,129.86,129.76,20.0]
[1725882986661,21.8588,129.86,129.79,15.89855996]
[1725882994386,45.0,129.85,129.79,15.89855996]
[1725883001882,28.08441863,129.87,129.79,15.89855996]
[1725883002091,45.0,129.86,129.79,31.12065996]
[1725883009091,45.0,129.87,129.79,31.12065996]
[1725883009410,52.7,129.87,129.79,31.12065996]
[1725883012103,96.28179378,129.86,129.79,15.2221]
[1725883012400,78.71089775,129.85,129.79,15.2221]
[1725883015109,78.71089775,129.85,129.76,31.94005996]
[1725883020398,71.00969775,129.85,129.76,31.94005996]
[1725883021497,71.00969775,129.85,129.78,15.89855996]
[1725883022098,26.00969775,129.85,129.78,15.89855996]
[1725883022299,26.00969775,129.85,129.79,6.5119]
[1725883022499,26.00969775,129.85,129.8,15.5156]
[1725883023541,45.0,129.84,129.8,15.5156]
[1725883028696,45.0,129.85,129.8,15.5156]
[1725883031798,45.0,129.85,129.8,31.41415996]
[1725883054222,45.0,129.86,129.8,31.41415996]
[1725883055145,45.0,129.86,129.8,15.5156]
[1725883057329,45.0,129.87,129.8,15.5156]
[1725883057646,7.699,129.89,129.8,31.41415996]
[1725883057855,20.0,129.88,129.8,31.41415996]
[1725883058547,20.0,129.89,129.8,31.41415996]
[1725883059724,45.0,129.88,129.8,31.41415996]
[1725883064540,45.0,129.88,129.81,2.47165451]
[1725883064953,45.0,129.88,129.81,2.47165421]
[1725883070744,45.0,129.88,129.8,31.41415996]
[1725883071252,45.0,129.88,129.8,15.5156]
[1725883071253,52.6994,129.88,129.8,15.5156]
[1725883071640,52.6994,129.88,129.8,17.98738398]
[1725883075551,52.6994,129.88,129.8,17.98741071]
[1725883079357,52.6994,129.88,129.8,15.5156]
[1725883085235,7.7,129.87,129.8,15.5156]
[1725883085440,45.0,129.86,129.8,15.5156]
[1725883093158,29.04126172,129.89,129.8,33.88604972]
[1725883093459,79.04126172,129.89,129.8,33.88604972]
[1725883094167,7.6994,129.88,129.8,33.88604972]
[1725883094470,45.0,129.87,129.8,33.88603759]
[1725883094653,45.0,129.87,129.8,31.41415996]
[1725883094853,45.0,129.87,129.8,33.88603788]
[1725883097147,45.0,129.87,129.8,31.41415996]
[1725883098267,52.7001,129.87,129.8,15.5156]
[1725883098587,54.04243151,129.87,129.8,15.5156]
[1725883103578,52.7001,129.87,129.8,15.5156]
[1725883113980,45.0,129.87,129.8,15.5156]
[1725883118867,45.0,129.87,129.81,2.47183401]
[1725883119085,45.0,129.87,129.8,15.5156]
[1725883119286,45.0,129.87,129.81,2.47183401]
[1725883119580,45.0,129.87,129.8,15.5156]
[1725883120078,45.0,129.87,129.81,2.47184527]
[1725883120273,45.0,129.87,129.8,15.5156]
[1725883120472,45.0,129.87,129.81,2.47184497]
[1725883120775,45.0,129.87,129.8,15.5156]
[1725883120979,45.0,129.87,129.81,2.47184527]
[1725883121181,45.0,129.87,129.8,15.5156]
[1725883121381,45.0,129.87,129.81,2.47184527]
[1725883121683,45.0,129.87,129.8,15.5156]
[1725883121989,45.0,129.87,129.81,2.47184527]
[1725883122157,45.0,129.87,129.8,15.5156]
[1725883122358,45.0,129.87,129.81,2.47184527]
[1725883122656,45.0,129.87,129.8,15.5156]
[1725883122856,45.0,129.87,129.81,2.47184527]
[1725883123086,45.0,129.87,129.8,15.5156]